bitfinex-derivatives/quotes_ETHF0:USTF0_20250421
["timestamp","ask_amount","ask_price","bid_price","bid_amount"]
[1745262557014,4.4324,1572.5,1572.4,6.09575]
[1745262558714,4.4324,1572.5,1572.4,6.09578]
[1745262559616,4.4324,1572.5,1572.4,4.824]
[1745262560116,10.6379,1572.5,1572.4,4.824]
[1745262560817,10.6379,1572.5,1572.4,6.09578]
[1745262561918,7.434,1572.5,1572.4,6.09578]
[1745262562219,3.2078,1572.6,1572.5,1.2717]
[1745262562417,1.27162,1572.6,1572.5,4.3849]
[1745262563917,4.44197,1572.7,1572.6,1.27162]
[1745262564116,4.44197,1572.7,1572.6,7.56552]
[1745262564518,4.43738558,1572.7,1572.6,7.56552]
[1745262565613,9.55264558,1572.7,1572.4,6.09572]
[1745262565809,1.2717,1572.5,1572.4,6.09572]
[1745262566923,1.27168,1572.6,1572.5,1.27163]
[1745262567927,3.1893,1572.7,1572.6,1.27162]
[1745262568127,3.17798,1573.2,1572.6,2.9367]
[1745262568423,2.9559,1573.4,1573.0,1.27124]
[1745262568618,37.56051251,1573.5,1573.4,1.27098]
[1745262568919,37.56051251,1573.5,1573.4,6.08798]
[1745262569119,37.56051251,1573.5,1573.4,54.8246]
[1745262569321,37.56051251,1573.5,1573.4,55.31192707]
[1745262569525,38.83140251,1573.5,1573.4,51.763]
[1745262569720,40.55271251,1573.5,1573.4,53.03398]
[1745262570024,40.55271251,1573.5,1573.4,56.09558]
[1745262570211,40.55271251,1573.5,1573.4,49.94958]
[1745262570620,37.56051251,1573.5,1573.4,49.94958]
[1745262572317,1.27075,1573.7,1573.5,1.27087]
[1745262572526,1.27075,1573.7,1573.6,3.2078]
[1745262573018,1.27075,1573.7,1573.5,7.64207]
[1745262573019,1.27081,1573.6,1573.5,3.24304259]
[1745262574127,1.27079,1573.7,1573.5,4.51393259]
[1745262574330,4.28739,1573.7,1573.5,7.63333259]
[1745262575028,3.0166,1573.7,1573.6,1.27081]
[1745262575229,4.28733,1573.7,1573.5,7.63329259]
[1745262575422,4.28733,1573.7,1573.5,6.36244259]
[1745262576025,3.0166,1573.7,1573.5,7.63332259]
[1745262577425,4.28735,1573.7,1573.5,7.63332259]
[1745262578023,3.0166,1573.7,1573.6,4.47861]
[1745262578928,3.0166,1573.7,1573.6,7.46181]
[1745262579627,4.28733,1573.7,1573.6,7.46181]
[1745262580023,4.28733,1573.7,1573.6,6.191]
[1745262580328,4.28733,1573.7,1573.5,6.20584259]
[1745262580626,3.0632,1573.6,1573.5,10.60166259]
[1745262581432,4.33401,1573.6,1573.5,0.00954259]
[1745262581831,9.33401,1573.6,1573.5,0.00954259]
[1745262582126,4.33401,1573.6,1573.5,0.00954259]
[1745262590639,1.27106,1573.3,1573.2,48.8228]
[1745262591035,1.27122,1573.1,1573.0,106.27003]
[1745262591231,1.27122,1573.1,1573.0,101.45503]
[1745262591537,1.27108,1573.4,1573.3,1.27101]
[1745262591738,4.37738,1573.4,1573.3,1.27101]
[1745262592438,1.27106,1573.3,1573.2,10.56420259]
[1745262592833,4.30446,1573.3,1573.2,10.56420259]
[1745262593833,4.30446,1573.3,1573.2,11.02997534]
[1745262596037,4.30446,1573.3,1573.2,11.0250512]
[1745262596342,4.30446,1573.3,1573.2,9.7539912]
[1745262596542,4.30446,1573.3,1573.2,3.21241845]
[1745262597443,7.44986,1573.3,1573.2,3.21241845]
[1745262598845,4.30446,1573.3,1573.2,3.21241845]
[1745262599143,4.30446,1573.3,1573.2,4.48355845]
[1745262600246,4.30446,1573.3,1573.2,7.41665845]
[1745262600749,1.28043259,1573.5,1573.4,1.27098]
[1745262600940,4.31743259,1573.5,1573.4,1.27098]
[1745262601441,4.31743259,1573.5,1573.4,4.20408]
[1745262602551,1.27098,1573.4,1573.3,9.03241]
[1745262602848,4.36208,1573.4,1573.3,9.03241]
[1745262603145,4.36208,1573.4,1573.3,9.03246]
[1745262605751,1.27106,1573.3,1573.2,3.21241845]
[1745262605941,4.43986,1573.3,1573.2,3.21241845]
[1745262606545,7.55386,1573.3,1573.2,3.21241845]
[1745262607148,7.55386,1573.3,1573.2,0.00954259]
[1745262608252,3.17785,1573.2,1572.8,17.4378]
[1745262608445,1.27138,1572.9,1572.8,18.70923]
[1745262609248,4.32716,1573.0,1572.9,1.27138]
[1745262610055,1.27138,1572.9,1572.8,18.70919]
[1745262610252,4.32718,1572.9,1572.8,18.70919]
[1745262611756,4.32718,1572.9,1572.8,15.53359]
[1745262613254,4.32718,1572.9,1572.8,18.52089]
[1745262613859,1.27118,1573.2,1573.1,1.27114]
[1745262614061,4.13568,1573.2,1573.1,1.27114]
[1745262614257,3.17713,1573.6,1573.2,1.27114]
[1745262614557,2.87404259,1573.5,1573.4,1.27098]
[1745262614759,24.0462005,1573.8,1573.7,1.27073]
[1745262615056,20.8979005,1573.8,1573.5,4.47863]
[1745262615263,20.8979005,1573.8,1573.7,1.27073]
[1745262615764,22.1685505,1573.8,1573.7,4.47853]
[1745262615955,22.1685505,1573.8,1573.7,6.3859]
[1745262616260,20.8883579,1573.8,1573.7,20.51603]
[1745262617163,0.00954259,1573.9,1573.8,1.27065]
[1745262617554,0.00954259,1573.9,1573.8,6.27065]
[1745262619562,0.00954259,1573.9,1573.8,1.27065]
[1745262619961,3.10874259,1573.9,1573.8,1.27065]
[1745262620159,0.00954259,1573.9,1573.8,1.27065]
[1745262620761,0.00954259,1573.9,1573.8,6.27065]
[1745262621366,0.00954259,1573.9,1573.8,6.79058669]
[1745262622271,0.00954259,1573.9,1573.8,1.27065]
[1745262622566,0.00954259,1573.9,1573.8,1.78795862]
[1745262623566,0.00954259,1573.9,1573.8,1.27065]
[1745262623960,0.00954259,1573.9,1573.8,1.78885217]
[1745262626861,0.00954259,1573.9,1573.8,4.82535217]
[1745262629572,1.27065,1573.8,1573.7,12.5319]
[1745262629771,4.17245,1573.8,1573.7,9.3538]
[1745262629966,9.17245,1573.8,1573.7,9.3538]
[1745262630165,9.17245,1573.8,1573.7,3.2078]
[1745262630767,4.17245,1573.8,1573.7,3.2078]
[1745262630965,9.17245,1573.8,1573.7,3.2078]
[1745262631972,4.17245,1573.8,1573.7,3.2078]
[1745262632871,4.17245,1573.8,1573.7,4.47853]
[1745262633067,2.9018,1573.8,1573.7,10.64563]
[1745262633260,4.17245,1573.8,1573.7,10.64563]
[1745262633665,4.17245,1573.8,1573.7,3.2078]
[1745262633972,4.17245,1573.8,1573.7,9.27753]
[1745262634474,4.17245,1573.8,1573.7,8.0068]
[1745262635266,4.17245,1573.8,1573.7,3.2078]
[1745262635664,1.27073,1573.7,1573.6,0.00954259]
[1745262635863,4.15593,1573.7,1573.6,0.00954259]
[1745262637375,4.15593,1573.7,1573.6,1.28035259]
[1745262637675,4.15593,1573.7,1573.6,0.00954259]
[1745262641877,7.10903,1573.7,1573.6,0.00954259]
[1745262642881,10.12413,1573.7,1573.6,0.00954259]
[1745262644281,1.27089,1573.5,1573.4,4.8]
[1745262644783,1.27098,1573.4,1573.3,8.0078]
[1745262644981,4.19938,1573.4,1573.3,9.27886]
[1745262645178,7.22318,1573.4,1573.3,8.0078]
[1745262647482,1.27106,1573.3,1573.2,0.00954259]
[1745262647682,4.22926,1573.3,1573.2,3.21734259]
[1745262648077,4.22926,1573.3,1573.2,4.48848259]
[1745262650085,4.22926,1573.3,1573.2,3.21734259]
[1745262650284,2.9582,1573.3,1573.2,4.48848259]
[1745262650480,2.9582,1573.3,1573.2,7.37218259]
[1745262650785,4.22926,1573.3,1573.2,3.21734259]
[1745262651179,7.06786,1573.3,1573.2,3.21734259]
[1745262652583,7.06786,1573.3,1573.2,4.48848259]
[1745262652781,4.22926,1573.3,1573.2,4.48848259]
[1745262652979,4.22926,1573.3,1573.2,3.21734259]
[1745262653385,4.22926,1573.3,1573.2,4.48848259]
[1745262653582,4.22926,1573.3,1573.2,3.21734259]
[1745262653982,2.9582,1573.3,1573.2,4.48848259]
[1745262654181,1.27098,1573.4,1573.3,1.27099]
[1745262654380,4.23308,1573.4,1573.3,7.26859]
[1745262654581,2.9621,1573.4,1573.3,48.06859]
[1745262654782,4.23308,1573.4,1573.3,48.06859]
[1745262655378,2.9621,1573.4,1573.3,48.06859]
[1745262655578,4.23308,1573.4,1573.3,48.06859]
[1745262655982,4.23308,1573.4,1573.3,46.7976]
[1745262656180,4.23308,1573.4,1573.3,2.9593]
[1745262656580,1.27106,1573.3,1573.2,3.21734259]
[1745262656782,4.21886,1573.3,1573.2,3.21734259]
[1745262657080,4.21886,1573.3,1573.2,4.48848259]
[1745262657286,4.21886,1573.3,1573.2,3.21734259]
[1745262658284,4.21886,1573.3,1573.2,4.48848259]
[1745262658788,4.21886,1573.3,1573.2,3.21734259]
[1745262658988,4.21886,1573.3,1573.2,4.48848259]
[1745262660689,4.21886,1573.3,1573.2,0.00954259]
[1745262661691,4.21886,1573.3,1573.2,9.28148259]
[1745262662792,4.21886,1573.3,1573.2,8.01034259]
[1745262662991,4.21886,1573.3,1573.2,9.28148259]
[1745262663893,4.21886,1573.3,1573.2,8.01034259]
[1745262664592,7.09306,1573.3,1573.2,0.00954259]
[1745262664792,1.27122,1573.1,1572.8,9.27222]
[1745262665094,1.27138,1572.9,1572.8,8.0008]
[1745262665593,4.11918,1572.9,1572.8,9.27226]
[1745262666198,2.8478,1572.9,1572.8,9.27226]
[1745262666494,4.11918,1572.9,1572.8,15.27596]
[1745262666896,4.11918,1572.9,1572.8,7.8155]
[1745262667092,4.11918,1572.9,1572.8,9.08696]
[1745262667287,4.11918,1572.9,1572.8,12.29476]
[1745262668396,4.11918,1572.9,1572.8,15.27596]
[1745262669398,2.8478,1572.9,1572.8,15.27596]
[1745262669697,0.00954259,1573.0,1572.9,1.27138]
[1745262669897,1.28084259,1573.0,1572.9,4.21088]
[1745262670693,0.0151,1573.4,1573.3,1.27106]
[1745262670898,1.28608,1573.4,1573.3,6.06406]
[1745262671095,4.11378,1573.4,1573.3,6.06406]
[1745262671394,4.11378,1573.4,1573.3,45.593]
[1745262671697,4.11378,1573.4,1573.3,9.00356]
[1745262671996,4.11378,1573.4,1573.3,7.7325]
[1745262672197,4.11378,1573.4,1573.3,9.00356]
[1745262672389,0.02464259,1573.5,1573.4,1.27098]
[1745262672588,0.02464259,1573.5,1573.4,10.27908]
[1745262672898,0.00954259,1573.5,1573.4,10.27908]
[1745262673899,1.28043259,1573.5,1573.4,10.27908]
[1745262674398,0.00954259,1573.5,1573.4,10.27908]
[1745262674599,1.28043259,1573.5,1573.4,10.27908]
[1745262674898,4.28203259,1573.5,1573.4,10.27908]
[1745262675299,4.28203259,1573.5,1573.4,6.1904]
[1745262675693,4.28203259,1573.5,1573.3,4.793]
[1745262675694,1.27106,1573.3,1573.2,9.0272]
[1745262675898,1.27106,1573.3,1573.2,15.09134]
[1745262676099,1.27106,1573.3,1573.2,13.8202]
[1745262676300,4.08676,1573.3,1573.2,13.8202]
[1745262676604,4.08676,1573.3,1573.2,15.09134]
[1745262676794,4.08676,1573.3,1573.2,13.8202]
[1745262677093,4.08676,1573.3,1573.2,15.09134]
[1745262677293,4.08676,1573.3,1573.2,18.01074]
[1745262677789,1.28050259,1573.5,1573.4,1.27098]
[1745262678099,4.22840259,1573.5,1573.4,4.47878]
[1745262678888,4.22840259,1573.5,1573.4,3.2078]
[1745262680100,4.22840259,1573.5,1573.4,4.47878]
[1745262680301,4.22840259,1573.5,1573.4,3.2078]
[1745262681497,1.27103,1573.4,1573.3,1.27098]
[1745262681703,4.12023,1573.4,1573.3,4.47878]
[1745262682505,6.93013,1573.4,1573.3,4.47878]
[1745262688912,6.93013,1573.4,1573.3,3.2078]
[1745262689315,4.12023,1573.4,1573.3,4.47886]
[1745262689509,4.12023,1573.4,1573.3,7.42136]
[1745262690313,4.12018,1573.4,1573.3,7.42136]
[1745262692315,4.12018,1573.4,1573.3,3.2078]
[1745262693115,4.13528,1573.4,1573.3,3.2078]
[1745262693416,4.13528,1573.4,1573.3,4.47886]
[1745262693617,4.13528,1573.4,1573.3,3.2078]
[1745262693816,2.8643,1573.4,1573.3,4.47886]
[1745262694321,4.13528,1573.4,1573.3,7.48016]
[1745262695821,4.13528,1573.4,1573.3,4.47886]
[1745262697126,4.13528,1573.4,1573.3,9.26386]
[1745262699613,4.13528,1573.4,1573.3,12.19716]
[1745262699923,2.8643,1573.4,1573.3,12.19716]
[1745262700619,0.0151,1573.4,1573.3,12.19716]
[1745262701028,1.28608,1573.4,1573.3,12.19716]
[1745262701326,0.0151,1573.4,1573.3,12.19716]
[1745262701819,2.8377,1573.4,1573.3,12.19716]
[1745262703226,4.10868,1573.4,1573.3,12.19716]
[1745262703627,2.8377,1573.4,1573.3,12.19716]
[1745262704125,4.10868,1573.4,1573.3,12.19716]
[1745262705123,0.00954259,1573.5,1573.3,17.19716]
[1745262705326,0.00954259,1573.5,1573.4,4.02488]
[1745262705727,0.00954259,1573.5,1573.4,9.02488]
[1745262706227,0.00954259,1573.5,1573.4,15.17088]
[1745262708427,0.00954259,1573.5,1573.4,10.17088]
[1745262711027,9.55862,1574.5,1573.7,6.35356]
[1745262711223,1.27034,1574.2,1574.1,4.47815]
[1745262711418,1.27034,1574.2,1574.1,9.26215]
[1745262711618,4.04514,1574.2,1574.1,9.26215]
[1745262712328,4.04514,1574.2,1574.1,7.9918]
[1745262714829,4.04514,1574.2,1574.1,9.26221]
[1745262717330,4.04514,1574.2,1574.1,6.05441]
[1745262719132,4.04514,1574.2,1574.1,9.26221]
[1745262719925,4.04514,1574.2,1574.1,7.9918]
[1745262720123,4.04514,1574.2,1574.1,9.26221]
[1745262720730,4.04514,1574.2,1574.1,7.9918]
[1745262721434,4.04514,1574.2,1574.1,9.26221]
[1745262722032,2.7748,1574.2,1574.1,9.26221]
[1745262722334,2.7748,1574.2,1574.1,12.15451]
[1745262722536,2.7748,1574.2,1574.1,15.19621]
[1745262722832,4.04513,1574.2,1574.1,15.19621]
[1745262723035,4.04513,1574.2,1574.1,13.9258]
[1745262723334,4.04513,1574.2,1574.1,12.15451]
[1745262724535,4.04513,1574.2,1574.1,7.9918]
[1745262726030,4.04513,1574.2,1574.1,9.26221]
[1745262727537,4.04513,1574.2,1574.1,7.9918]
[1745262728834,4.04513,1574.2,1574.1,9.26221]
[1745262732342,2.7748,1574.2,1574.1,9.26221]
[1745262732638,2.7748,1574.2,1574.1,12.04431]
[1745262733342,0.00954259,1574.3,1574.2,1.27033]
[1745262733639,0.00954259,1574.3,1574.2,9.91873]
[1745262733841,0.00954259,1574.3,1574.2,50.71873]
[1745262734237,0.00954259,1574.3,1574.2,61.63773]
[1745262734645,0.00954259,1574.3,1574.2,66.63773]
[1745262735641,2.59e-06,1574.3,1574.2,66.63773]
[1745262735947,20.18000648,1575.0,1574.4,6.35066]
[1745262736149,18.91025648,1575.0,1574.9,4.47756]
[1745262736338,21.66235648,1575.0,1574.9,9.25056]
[1745262736740,22.93203648,1575.0,1574.9,9.25056]
[1745262736939,22.93203648,1575.0,1574.9,12.04296]
[1745262737140,22.93203648,1575.0,1574.9,10.7732]
[1745262737544,4.02178,1575.0,1574.9,10.7732]
[1745262738247,2.7521,1575.0,1574.9,10.7732]
[1745262738450,2.7521,1575.0,1574.9,12.04296]
[1745262738941,4.02178,1575.0,1574.9,12.04296]
[1745262739143,1.26961,1575.1,1575.0,1.26964]
[1745262739449,1.26961,1575.1,1575.0,2.7861]
[1745262740149,1.26961,1575.1,1575.0,4.05578]
[1745262740150,4.13861,1575.1,1575.0,4.05578]
[1745262740345,4.13861,1575.1,1575.0,3.26190849]
[1745262740538,1.26968,1575.0,1574.9,7.9808]
[1745262740743,4.13868,1575.0,1574.9,7.9808]
[1745262742347,4.13868,1575.0,1574.9,4.773]
[1745262743351,4.13868,1575.0,1574.9,7.9808]
[1745262746948,4.13868,1575.0,1574.9,3.2078]
[1745262747248,1.26976,1574.9,1574.8,4.78054259]
[1745262747547,6.93646,1574.9,1574.8,4.78054259]
[1745262751152,4.15906,1574.9,1574.8,6.05039259]
[1745262751554,4.15906,1574.9,1574.8,11.95279259]
[1745262752954,4.15906,1574.9,1574.8,10.68294259]
[1745262753155,4.15906,1574.9,1574.8,7.73024259]
[1745262753351,4.15906,1574.9,1574.8,4.78054259]
[1745262753548,1.26985,1574.8,1574.7,3.2078]
[1745262753749,6.71695,1574.8,1574.7,7.9698]
[1745262753950,1.27009,1574.5,1574.4,100.0838]
[1745262754149,1.27009,1574.5,1574.4,104.8458]
[1745262754653,1.27009,1574.5,1574.4,100.0838]
[1745262754851,3.97999,1574.5,1574.4,101.638]
[1745262755057,3.97999,1574.5,1574.4,102.90817]
[1745262755257,6.72629,1574.5,1574.4,102.90817]
[1745262755556,6.72629,1574.5,1574.4,101.638]
[1745262755961,6.72629,1574.5,1574.4,102.90817]
[1745262756255,6.72629,1574.5,1574.4,101.638]
[1745262756457,6.72629,1574.5,1574.4,102.90817]
[1745262757460,4.01639,1574.5,1574.4,105.87917]
[1745262758949,2.7463,1574.5,1574.4,105.87917]
[1745262759354,4.01639,1574.5,1574.4,105.87917]
[1745262759753,4.01639,1574.5,1574.4,104.609]
[1745262759955,4.01639,1574.5,1574.4,101.638]
[1745262760358,6.99209,1574.5,1574.4,101.638]
[1745262761059,1.27017,1574.4,1574.3,0.00954259]
[1745262761259,12.28317,1574.4,1574.3,0.00954259]
[1745262762458,7.28317,1574.4,1574.3,0.00954259]
[1745262763259,4.07537,1574.4,1574.3,1.27979259]
[1745262763762,4.07537,1574.4,1574.3,0.00954259]
[1745262763955,4.07537,1574.4,1574.3,1.27979259]
[1745262764262,4.07537,1574.4,1574.3,0.00954259]
[1745262764458,4.07537,1574.4,1574.3,1.27979259]
[1745262765260,4.07537,1574.4,1574.3,0.00954259]
[1745262765565,4.07537,1574.4,1574.3,1.27979259]
[1745262765865,4.07537,1574.4,1574.3,0.00954259]
[1745262767763,4.07537,1574.4,1574.3,1.27979259]
[1745262767963,4.07537,1574.4,1574.3,4.10599259]
[1745262768568,2.8052,1574.4,1574.3,4.10599259]
[1745262768963,4.07537,1574.4,1574.3,4.10599259]
[1745262769162,2.8052,1574.4,1574.3,4.10599259]
[1745262769364,4.07537,1574.4,1574.3,4.10599259]
[1745262769769,1.27015,1574.5,1574.4,1.27017]
[1745262769969,4.01235,1574.5,1574.4,14.75747]
[1745262772268,4.01235,1574.5,1574.4,11.81447]
[1745262772669,4.01235,1574.5,1574.4,7.6893]
[1745262772870,1.27017,1574.4,1574.3,0.00954259]
[1745262773065,4.16277,1574.4,1574.3,1.27979259]
[1745262773268,2.8926,1574.4,1574.3,6.04379259]
[1745262773670,2.8926,1574.4,1574.3,8.92999259]
[1745262775174,4.48739259,1574.6,1574.5,1.27009]
[1745262775471,7.37999259,1574.6,1574.5,1.27009]
[1745262775668,7.37999259,1574.6,1574.5,4.24349]
[1745262776272,7.37999259,1574.6,1574.5,6.96459]
[1745262780073,1.27009,1574.5,1574.4,4.1244]
[1745262780274,6.87759,1574.5,1574.4,4.1244]
[1745262780468,6.87759,1574.5,1574.4,2.8543]
[1745262780780,1.27017,1574.4,1574.3,7.49234259]
[1745262781072,4.04087,1574.4,1574.3,6.04379259]
[1745262781670,4.04087,1574.4,1574.3,9.03649259]
[1745262782267,2.7707,1574.4,1574.3,9.03649259]
[1745262782664,2.7707,1574.4,1574.3,11.84179259]
[1745262783075,4.48740259,1574.6,1574.3,11.84179259]
[1745262783076,7.24590259,1574.6,1574.5,1.27009]
[1745262783375,3.21734259,1574.6,1574.5,1.27009]
[1745262783776,3.21734259,1574.6,1574.5,4.07539]
[1745262783976,0.00954259,1574.6,1574.5,4.07539]
[1745262785078,3.2078,1575.1,1575.0,1.26968]
[1745262785274,1.2696,1575.1,1575.0,4.755]
[1745262786174,4.4774,1575.1,1575.0,4.755]
[1745262786376,1.26985,1574.8,1574.7,1.26989]
[1745262786575,1.26983,1574.9,1574.8,1.26984]
[1745262787671,6.16204,1575.1,1574.8,1.26978]
[1745262787975,1.26976,1575.0,1574.9,1.26976]
[1745262788776,1.26976,1575.0,1574.9,4.11216]
[1745262789578,6.07273,1575.2,1574.9,2.8424]
[1745262789777,1.2696,1575.1,1575.0,4.754]
[1745262790372,6.8874,1575.2,1575.1,1.2696]
[1745262790573,4.1685,1575.2,1575.1,1.2696]
[1745262790774,1.2696,1575.1,1575.0,11.93852]
[1745262790974,4.16848,1575.2,1575.1,1.2696]
[1745262791176,4.16848,1575.2,1575.0,10.6689]
[1745262791177,1.2696,1575.1,1575.0,11.93853]
[1745262791777,1.2696,1575.1,1575.0,10.6689]
[1745262791978,1.2696,1575.1,1575.0,7.7608]
[1745262792173,1.2696,1575.1,1575.0,9.03048]
[1745262793375,1.26974,1575.0,1574.9,6.0237]
[1745262793976,1.26974,1575.0,1574.9,4.754]
[1745262794781,1.26974,1575.0,1574.9,6.02376]
[1745262796580,1.26974,1575.0,1574.9,4.754]
[1745262796783,1.26976,1574.9,1574.8,3.2078]
[1745262797077,4.18046,1574.9,1574.8,7.9608]
[1745262797483,4.18046,1574.9,1574.8,9.23065]
[1745262797681,4.18046,1574.9,1574.8,7.9608]
[1745262798182,3.17462,1574.8,1574.3,3.21734259]
[1745262798381,1.27017,1574.4,1574.3,4.76254259]
[1745262798778,4.47797,1574.4,1574.3,4.76254259]
[1745262798978,4.47797,1574.4,1574.3,0.00954259]
[1745262800581,1.27017,1574.4,1574.3,0.00954259]
[1745262801083,3.2078,1574.6,1574.3,0.00954259]
[1745262801287,1.27009,1574.5,1574.4,6.02411]
[1745262801478,1.27009,1574.5,1574.4,8.74131]
[1745262801785,1.27006,1574.6,1574.5,1.27004]
[1745262802174,1.27009,1574.5,1574.4,11.60221]
[1745262802988,1.27004,1574.6,1574.5,1.27004]
[1745262803187,4.04854,1574.6,1574.5,1.27004]
[1745262803690,1.27009,1574.5,1574.4,11.60222]
[1745262803984,4.04859,1574.5,1574.4,7.4712]
[1745262804783,4.04859,1574.5,1574.4,4.754]
[1745262804981,1.27017,1574.4,1574.3,0.00954259]
[1745262805289,6.89947,1574.4,1574.3,0.00954259]
[1745262805687,10.10727,1574.4,1574.3,0.00954259]
[1745262806190,6.89947,1574.4,1574.3,0.00954259]
[1745262806690,10.10727,1574.4,1574.3,0.00954259]
[1745262810983,9.231,1574.6,1574.3,0.00954259]
[1745262810984,1.27015,1574.5,1574.4,1.27017]
[1745262811289,4.06925,1574.5,1574.4,8.5266]
[1745262811886,4.06925,1574.5,1574.4,9.79677]
[1745262813793,4.06925,1574.5,1574.4,8.5266]
[1745262814189,1.27017,1574.4,1574.3,4.76354259]
[1745262814389,4.13217,1574.4,1574.3,0.00954259]
[1745262823701,7.862,1574.4,1573.9,6.01656]
[1745262823901,12.3333,1574.5,1573.9,11.90096]
[1745262823902,1.27057,1574.0,1573.9,11.90096]
[1745262824097,1.27057,1574.0,1573.9,10.6304]
[1745262824405,4.15277,1574.0,1573.9,10.6304]
[1745262824595,7.13467,1574.0,1573.9,7.7354]
[1745262824797,1.27065,1573.8,1573.7,10.6304]
[1745262825400,4.15285,1573.8,1573.7,10.6304]
[1745262827405,1.27065,1573.8,1573.7,11.90113]
[1745262827603,1.27065,1573.8,1573.7,14.75023]
[1745262829205,1.27053,1574.0,1573.9,1.27052]
[1745262830195,1.27053,1574.0,1573.9,4.11962]
[1745262831399,4.12233,1574.0,1573.9,4.11962]
[1745262831899,4.48780259,1574.1,1574.0,1.27049]
[1745262832103,4.48780259,1574.1,1574.0,14.54759]
[1745262833101,1.27039,1574.2,1574.1,1.27033]
[1745262833410,4.12219,1574.2,1574.1,4.14223]
[1745262834499,4.12219,1574.2,1574.1,1.27033]
[1745262835399,1.27041,1574.1,1574.0,11.67562]
[1745262835600,4.12001,1574.1,1574.0,11.67562]
[1745262836604,4.12001,1574.1,1574.0,11.67569]
[1745262840503,4.12001,1574.1,1574.0,10.4052]
[1745262840696,4.12001,1574.1,1574.0,11.67569]
[1745262845110,6.80581,1574.1,1574.0,4.747]
[1745262845299,11.51816,1574.1,1573.9,3.2078]
[1745262845503,4.14817,1574.0,1573.9,1.27057]
[1745262845804,3.2078,1574.8,1573.9,11.38424]
[1745262846004,6.34722,1575.4,1574.5,1.27009]
[1745262846005,2.7031,1574.6,1574.5,1.27009]
[1745262846206,2.7031,1574.6,1574.5,14.38379]
[1745262846407,1.26988,1574.8,1574.7,1.26993]
[1745262846811,1.26993,1574.7,1574.6,4.08854]
[1745262847510,1.26991,1574.8,1574.7,1.26991]
[1745262847711,1.26991,1574.8,1574.6,2.8186]
[1745262847712,1.26993,1574.7,1574.6,4.08855]
[1745262849614,3.97299,1574.8,1574.7,1.26993]
[1745262849801,3.973,1574.8,1574.5,5.5571]
[1745262850002,2.8549,1574.7,1574.6,6.00798]
[1745262852110,3.2078,1575.0,1574.6,4.738]
[1745262852316,2.8264,1574.9,1574.8,1.26985]
[1745262852815,2.8264,1574.9,1574.8,4.21555]
[1745262853215,2.8264,1574.9,1574.8,7.42335]
[1745262853417,3.2078,1575.5,1575.4,1.26936]
[1745262853715,8.9184,1575.5,1575.4,1.26936]
[1745262853915,5.7106,1575.5,1575.4,4.47716]
[1745262854116,21.10375809,1575.6,1575.5,1.26928]
[1745262854312,21.10375809,1575.6,1575.4,3.2078]
[1745262854510,21.10375809,1575.6,1575.5,1.26928]
[1745262854910,26.10375809,1575.6,1575.5,1.26928]
[1745262855508,21.10375809,1575.6,1575.5,1.26928]
[1745262856518,19.67285809,1575.6,1575.5,8.94168]
[1745262856716,2.9233,1575.8,1575.7,1.26912]
[1745262856914,2.9233,1575.8,1575.7,9.21392]
[1745262857307,2.9233,1575.8,1575.7,11.88632]
[1745262857508,11.1311,1575.8,1575.4,1.26932]
[1745262857712,3.2078,1575.6,1575.4,1.26932]
[1745262857919,2.784,1575.5,1575.4,1.26932]
[1745262858921,5.9918,1575.5,1575.4,1.26932]
[1745262860220,2.784,1575.5,1575.4,1.26932]
[1745262860618,2.784,1575.5,1575.4,6.00532]
[1745262860818,2.784,1575.5,1575.4,11.87972]
[1745262861516,5.4187,1575.7,1575.6,1.2692]
[1745262862321,3.2078,1576.1,1576.0,1.26888]
[1745262862617,3.32222003,1576.1,1576.0,1.26888]
[1745262862915,3.2078,1576.1,1576.0,1.26888]
[1745262863121,3.32221637,1576.1,1576.0,1.26888]
[1745262863719,10.99791637,1576.1,1575.7,7.9438]
[1745262864022,2.7735,1576.0,1575.8,1.26899]
[1745262864422,2.7088,1575.9,1575.8,1.26899]
[1745262867022,8.7754,1575.9,1575.7,6.00505]
[1745262867324,13.7754,1575.9,1575.5,1.26923]
[1745262867528,3.2078,1575.6,1575.5,1.26923]
[1745262867915,3.2078,1575.6,1575.4,1.2693]
[1745262868122,5.5691,1575.5,1575.4,1.2693]
[1745262868323,8.3907,1575.5,1575.4,1.2693]
[1745262871625,3.2078,1575.6,1575.5,1.26928]
[1745262871821,3.2078,1576.2,1576.0,1.2688]
[1745262872017,2.8296,1576.1,1575.9,1.26892]
[1745262872527,2.7308,1576.0,1575.9,1.26892]
[1745262872727,1.26904,1575.8,1575.7,1.2691]
[1745262873327,6.69373,1575.9,1575.8,1.26904]
[1745262873527,4.02193,1575.9,1575.8,1.26904]
[1745262874623,3.99975,1576.0,1575.9,1.26896]
[1745262875030,2.7308,1576.0,1575.9,1.26896]
[1745262875427,3.99968,1576.0,1575.9,1.26896]
[1745262882339,1.26896,1575.9,1575.8,3.2078]
[1745262882641,1.26918,1575.7,1575.6,4.47692]
[1745262883043,1.26912,1575.8,1575.7,1.26907]
[1745262884244,1.26912,1575.7,1575.6,1.26914]
[1745262884444,1.26912,1575.7,1575.6,4.47694]
[1745262884644,1.26912,1575.7,1575.6,1.26914]
[1745262886947,4.47694,1575.8,1575.7,1.26912]
[1745262888148,1.26914,1575.8,1575.7,1.26912]
[1745262890150,1.26912,1575.7,1575.6,1.26914]
[1745262890352,6.74932,1575.7,1575.6,1.26914]
[1745262891241,3.2078,1576.1,1575.8,1.26904]
[1745262891442,1.26894,1576.0,1575.9,1.26889]
[1745262891842,1.26904,1575.8,1575.7,1.2691]
[1745262892051,1.26909,1575.8,1575.7,1.26904]
[1745262892245,1.26908,1575.8,1575.7,1.26904]